bitfinex/quotes_ETHUSD_20250705
["timestamp","ask_amount","ask_price","bid_price","bid_amount"]
[1751718400971,0.36945564,2516.4,2516.3,13.6566341]
[1751718401139,0.36945564,2516.4,2516.3,13.61689322]
[1751718402637,0.001,2516.6,2516.5,3.97377309]
[1751718402836,0.001,2516.6,2516.5,14.44690388]
[1751718402837,1e-08,2516.6,2516.5,14.44690388]
[1751718403041,0.001,2516.9,2516.8,4.75679942]
[1751718403246,0.001,2516.9,2516.8,20.3633284]
[1751718403464,0.001,2516.9,2516.8,20.32359541]
[1751718405043,0.001,2516.9,2516.8,12.75279942]
[1751718405251,0.001,2516.9,2516.8,15.01668421]
[1751718406354,0.001,2516.9,2516.8,14.5904802]
[1751718406558,0.001,2516.9,2516.8,15.01668421]
[1751718408469,0.001,2516.9,2516.8,19.75668421]
[1751718408965,0.001,2516.9,2516.8,11.76068421]
[1751718409170,0.001,2516.9,2516.8,19.75868421]
[1751718411753,0.001,2516.9,2516.8,19.75768421]
[1751718413673,0.001,2516.9,2516.8,11.76068421]
[1751718413870,0.001,2516.9,2516.8,19.75668421]
[1751718416157,0.001,2516.9,2516.8,19.76068421]
[1751718419689,0.001,2516.9,2516.8,15.02068421]
[1751718425369,0.001,2516.9,2516.8,7.02068421]
[1751718425913,0.001,2516.9,2516.8,15.01668421]
[1751718426200,0.001,2516.9,2516.8,7.02068421]
[1751718426393,0.001,2516.9,2516.8,15.01668421]
[1751718431231,0.001,2516.9,2516.8,6.23718421]
[1751718431395,0.36969631,2516.9,2516.8,14.23218421]
[1751718434339,0.36969631,2516.9,2516.8,14.23118421]
[1751718438928,0.36969631,2516.9,2516.8,6.23718421]
[1751718439225,0.36969631,2516.9,2516.8,14.23118421]
[1751718441734,0.36969631,2516.9,2516.8,6.23718421]
[1751718442034,0.36969631,2516.9,2516.8,14.2709172]
[1751718442336,0.36969631,2516.9,2516.8,14.23118421]
[1751718442505,0.36969631,2516.9,2516.8,14.99848421]
[1751718444203,0.37007756,2516.9,2516.8,14.99848421]
[1751718446937,0.37007756,2516.9,2516.8,19.73848421]
[1751718447136,0.37007892,2516.9,2516.8,19.73848421]
[1751718449642,0.37007892,2516.9,2516.8,18.97118421]
[1751718450043,0.37005926,2516.9,2516.8,18.97118421]
[1751718456710,0.37005926,2516.9,2516.8,7.00388479]
[1751718456924,0.37005926,2516.9,2516.8,4.74]
[1751718457121,0.37005926,2516.9,2516.8,7.994]
[1751718457326,0.65685926,2516.9,2516.8,7.994]
[1751718457525,0.65685926,2516.9,2516.5,3.97365811]
[1751718457721,0.36905926,2516.8,2516.6,7.994]
[1751718458022,0.36905926,2516.7,2516.6,7.994]
[1751718459329,0.36905926,2516.7,2516.6,11.96761519]
[1751718460531,0.36905926,2516.7,2516.6,7.994]
[1751718463051,0.36905926,2516.7,2516.6,3.97361519]
[1751718463345,0.36905926,2516.7,2516.6,11.96861519]
[1751718463951,0.36905926,2516.7,2516.6,7.995]
[1751718464945,0.36905926,2516.7,2516.6,11.96861519]
[1751718477066,0.36829792,2516.7,2516.6,11.96861519]
[1751718482056,0.36850215,2516.7,2516.6,11.96861519]
[1751718483676,0.36850215,2516.7,2516.6,3.97361519]
[1751718483859,0.36850215,2516.7,2516.6,11.96861519]
[1751718484061,0.36850215,2516.7,2516.6,7.995]
[1751718485087,0.36883739,2516.7,2516.6,11.96861519]
[1751718490908,0.36965397,2516.7,2516.6,11.96861519]
[1751718494102,0.36965397,2516.7,2516.6,3.97361519]
[1751718494273,0.36965397,2516.7,2516.6,11.96861519]
[1751718499183,0.36965397,2516.7,2516.6,7.995]
[1751718499803,0.36964703,2516.7,2516.6,7.995]
[1751718508717,0.3693689,2516.7,2516.6,7.995]
[1751718512021,0.3693689,2516.7,2516.6,11.96861519]
[1751718512192,0.3693689,2516.7,2516.6,13.56285231]
[1751718512989,0.3693689,2516.7,2516.6,11.96861519]
[1751718514620,0.36937264,2516.7,2516.6,11.96861519]
[1751718516119,0.36937264,2516.7,2516.6,7.995]
[1751718516820,0.36937264,2516.7,2516.6,11.96861519]
[1751718517691,0.3693758,2516.7,2516.6,11.96861519]
[1751718518218,0.3693758,2516.7,2516.6,7.995]
[1751718520255,0.3693758,2516.7,2516.6,11.96861519]
[1751718522315,0.3693758,2516.7,2516.6,7.995]
[1751718522514,0.3693758,2516.7,2516.6,11.96861519]
[1751718523543,0.001,2516.9,2516.6,7.995]
[1751718523748,0.36943818,2516.8,2516.6,7.995]
[1751718523948,0.36943818,2516.7,2516.6,7.995]
[1751718525344,0.36943818,2516.7,2516.6,11.96861519]
[1751718525951,0.36945259,2516.7,2516.6,11.96861519]
[1751718527021,0.36945259,2516.7,2516.6,11.96761519]
[1751718529051,0.36945259,2516.7,2516.6,7.994]
[1751718529239,0.36945259,2516.7,2516.5,3.97369459]
[1751718529442,0.36945259,2516.6,2516.4,3.97385655]
[1751718529648,3.97421125,2516.9,2516.5,11.96776574]
[1751718529649,0.001,2516.9,2516.5,11.96776574]
[1751718529953,0.001,2516.9,2516.3,4.7832861]
[1751718529954,0.36950822,2516.8,2516.4,3.97379166]
[1751718530261,0.36950822,2516.7,2516.5,7.994]
[1751718530555,0.36950822,2516.6,2516.5,7.994]
[1751718530937,0.36950822,2516.6,2516.5,11.96777309]
[1751718532640,0.001,2516.9,2516.6,3.97352992]
[1751718532841,0.36953603,2516.8,2516.7,7.994]
[1751718548177,0.36953603,2516.8,2516.7,11.9674573]
[1751718548344,0.36953603,2516.8,2516.7,7.994]
[1751718549773,0.36947985,2516.8,2516.7,7.994]
[1751718550160,0.36947922,2516.8,2516.7,7.994]
[1751718554064,0.36947922,2516.8,2516.7,11.9674573]
[1751718555291,0.65627922,2516.8,2516.7,7.993]
[1751718555488,0.36947922,2516.8,2516.7,7.993]
[1751718555675,0.36948197,2516.8,2516.7,7.993]
[1751718563997,0.36948197,2516.8,2516.7,7.992]
[1751718565365,0.36948197,2516.8,2516.6,3.97361351]
[1751718565692,0.36948197,2516.7,2516.6,3.97361351]
[1751718565893,0.36948197,2516.7,2516.6,11.96561351]
[1751718573674,0.36948197,2516.7,2516.6,13.65957023]
[1751718576706,0.001,2516.9,2516.8,3.97329942]
[1751718576904,0.37071331,2516.9,2516.8,11.96429942]
[1751718578713,0.37071331,2516.9,2516.8,12.73299942]
[1751718578884,0.37071331,2516.9,2516.8,12.93139942]
[1751718580315,0.37071331,2516.9,2516.8,15.17372287]
[1751718580608,0.37071331,2516.9,2516.8,11.20042345]
[1751718580788,0.37071331,2516.9,2516.8,12.16269942]
[1751718587084,0.37051893,2516.9,2516.8,12.16269942]
[1751718591422,0.001,2516.9,2516.8,12.16269942]
[1751718591597,0.37036394,2516.9,2516.8,12.16269942]
[1751718592311,0.37036394,2516.9,2516.8,12.16169942]
[1751718593429,0.37036394,2516.9,2516.8,14.88231357]
[1751718599431,0.37036394,2516.9,2516.8,6.89231357]
[1751718599730,0.37036394,2516.9,2516.8,12.16069942]
[1751718600631,0.37036394,2516.9,2516.8,8.1874]
[1751718600930,0.37036394,2516.9,2516.8,12.16069942]
[1751718601109,0.37036394,2516.9,2516.8,8.1874]
[1751718601307,0.37036394,2516.9,2516.8,12.16069942]
[1751718601926,0.37036394,2516.9,2516.8,4.17169942]
[1751718602138,0.37036394,2516.9,2516.8,12.16069942]
[1751718602312,0.37027119,2516.9,2516.8,12.16069942]
[1751718603333,0.37027119,2516.9,2516.8,8.1874]
[1751718605028,0.37027119,2516.9,2516.8,12.16069942]
[1751718605230,0.37027119,2516.9,2516.8,4.17169942]
[1751718605435,0.37027119,2516.9,2516.8,12.16069942]
[1751718606326,0.37027119,2516.9,2516.8,14.54970687]
[1751718608134,0.37042198,2516.9,2516.8,14.54970687]
[1751718611535,0.37042198,2516.9,2516.8,13.77410687]
[1751718619144,0.37042198,2516.9,2516.8,12.16069942]
[1751718619648,0.37042198,2516.9,2516.8,7.988]
[1751718621347,0.37042198,2516.9,2516.6,8.91191922]
[1751718621547,0.36942198,2516.8,2516.7,7.988]
[1751718622649,0.36942198,2516.8,2516.6,4.17191922]
[1751718622650,0.36942198,2516.8,2516.6,0.1984]
[1751718622815,0.65622198,2516.7,2516.3,8.72402602]
[1751718623018,0.36930128,2516.6,2516.4,0.1984]
[1751718623348,0.2868,2516.7,2516.3,4.75]
[1751718623349,0.36930128,2516.5,2516.3,4.75]
[1751718623546,9.97708897,2516.7,2516.4,7.988]
[1751718623746,0.36917319,2516.6,2516.4,7.988]
[1751718623952,0.2868,2516.4,2516.3,0.01]
[1751718624244,0.65597319,2516.4,2516.3,0.01]
[1751718624557,0.65597319,2516.4,2516.3,7.998]
[1751718627166,0.65597319,2516.4,2516.3,0.01]
[1751718627360,0.65597319,2516.4,2516.3,7.999]
[1751718629267,0.65597319,2516.4,2516.3,0.01]
[1751718629636,0.85437319,2516.4,2516.3,7.999]
[1751718631864,0.85378275,2516.4,2516.3,7.999]
[1751718632665,0.36858275,2516.4,2516.3,11.97308894]
[1751718635839,0.36858275,2516.4,2516.3,13.66681968]
[1751718636033,0.36858275,2516.4,2516.3,13.86521968]
[1751718636459,0.36858275,2516.4,2516.3,27.00446604]
[1751718636665,0.001,2516.9,2516.8,3.97329942]
[1751718636861,0.36953881,2516.9,2516.8,11.96229942]
[1751718637441,0.36953881,2516.9,2516.8,13.36594691]
[1751718637646,0.36953881,2516.9,2516.8,13.56434691]
[1751718640870,0.3696066,2516.9,2516.8,13.56434691]
[1751718641172,0.001,2516.9,2516.8,13.56434691]
[1751718641476,0.36961208,2516.9,2516.8,13.56334691]
[1751718643895,0.36962094,2516.9,2516.8,13.56334691]
[1751718646548,0.36963088,2516.9,2516.8,13.56334691]
[1751718646945,0.36962833,2516.9,2516.8,13.56334691]
[1751718647345,0.36962833,2516.9,2516.8,14.37234691]
[1751718648158,0.001,2516.9,2516.8,19.11234691]
[1751718651983,0.001,2516.9,2516.8,14.37234691]
[1751718656963,0.001,2516.9,2516.8,19.11234691]
[1751718657555,0.001,2516.9,2516.8,29.11234691]
[1751718659889,0.001,2516.9,2516.8,29.31159365]
[1751718660268,0.001,2516.9,2516.8,29.11234691]
[1751718662303,0.001,2516.9,2516.8,29.66234691]
[1751718664307,0.001,2517.0,2516.9,5.31154156]
[1751718664475,0.001,2517.0,2516.9,16.73605358]
[1751718668501,0.001,2517.2,2517.1,3.97282587]
[1751718668708,0.001,2517.2,2517.1,17.47852587]
[1751718668903,0.001,2517.2,2517.1,17.67692587]
[1751718669605,0.001,2517.2,2517.1,18.22692587]
[1751718669807,0.001,2517.2,2517.1,20.85659124]
[1751718670680,0.001,2517.6,2517.4,3.97235242]
[1751718670890,0.36985314,2517.5,2517.4,11.99707594]
[1751718671092,0.36985314,2517.5,2517.4,12.15575242]
[1751718672517,0.001,2517.5,2517.4,12.15575242]
[1751718672715,0.001,2517.5,2517.4,13.84948316]
[1751718674689,0.001,2517.5,2517.4,14.60218316]
[1751718674909,0.001,2517.5,2517.4,24.60218316]
[1751718675312,0.001,2517.6,2517.5,3.97219463]
[1751718675489,0.001,2517.6,2517.5,4.72489463]
[1751718675690,0.001,2517.6,2517.5,6.12854212]
[1751718677409,0.001,2517.6,2517.5,16.67854212]
[1751718677923,1e-08,2517.6,2517.5,16.67854212]
[1751718685924,1e-08,2517.6,2517.5,21.41854212]
[1751718695600,1e-08,2517.6,2517.5,30.58184212]
[1751718696019,1e-08,2517.6,2517.5,28.09784212]
[1751718707753,1e-08,2517.6,2517.5,20.11584212]
[1751718707954,1e-08,2517.6,2517.5,28.09784212]
[1751718708156,1e-08,2517.6,2517.5,20.11584212]
[1751718708369,1e-08,2517.6,2517.5,28.09784212]
[1751718708860,1e-08,2517.6,2517.5,16.69419463]
[1751718713137,1e-08,2517.6,2517.5,11.95419463]
[1751718713337,1e-08,2517.6,2517.5,11.90419463]
[1751718714373,1e-08,2517.6,2517.5,3.92219463]
[1751718714570,1e-08,2517.6,2517.5,11.90419463]
[1751718715545,1e-08,2517.6,2517.5,11.90619463]
[1751718721075,1e-08,2517.6,2517.5,11.80619463]
[1751718721769,1e-08,2517.6,2517.5,13.17521141]
[1751718722242,1e-08,2517.6,2517.5,23.72521141]
[1751718722442,0.042912,2518.0,2517.9,3.9715636]
[1751718722681,0.042912,2518.0,2517.9,12.1519636]
[1751718732080,0.043912,2518.0,2517.9,12.1519636]
[1751718732378,0.043912,2518.0,2517.9,14.2398671]
[1751718737052,0.043912,2518.0,2517.9,18.9798671]
[1751718746874,0.043912,2518.0,2517.9,19.7604671]
[1751718748897,0.043912,2518.0,2517.9,20.3104671]
[1751718749814,1e-08,2518.0,2517.9,30.3104671]
[1751718755631,1e-08,2518.0,2517.9,22.3284671]
[1751718755847,1e-08,2518.0,2517.9,32.2414671]
[1751718763036,1e-08,2518.0,2517.9,22.3284671]
[1751718763238,1e-08,2518.0,2517.9,32.2404671]
[1751718763539,1e-08,2518.0,2517.9,22.3284671]
[1751718763739,1e-08,2518.0,2517.9,32.2404671]
[1751718764051,1e-08,2518.0,2517.9,22.3284671]
[1751718764223,1e-08,2518.0,2517.9,32.2404671]
[1751718765346,1e-08,2518.0,2517.9,32.2424671]
[1751718769718,1e-08,2518.0,2517.9,37.75232459]
[1751718779971,1e-08,2518.0,2517.9,39.81702234]
[1751718787491,0.2868,2518.7,2517.9,39.81702234]
[1751718787492,0.21497144,2518.7,2518.6,3.97045977]
[1751718787721,0.58477942,2518.7,2518.6,12.14685977]
[1751718789703,0.58477942,2518.7,2518.6,4.16885977]
[1751718789870,0.58477942,2518.7,2518.6,12.14585977]
[1751718795927,0.21497144,2518.7,2518.6,12.14585977]
[1751718796217,0.58470763,2518.7,2518.6,12.14585977]
[1751718798018,0.58570763,2518.7,2518.6,12.14585977]
[1751718804795,0.58577421,2518.7,2518.6,12.14585977]
[1751718810631,0.58577421,2518.7,2518.6,4.16885977]
[1751718810844,0.58577421,2518.7,2518.6,12.14585977]
[1751718815338,0.58577421,2518.7,2518.6,4.16885977]
[1751718815640,0.58577421,2518.7,2518.6,11.94745977]
[1751718816436,0.58577421,2518.7,2518.6,3.97045977]
[1751718816645,0.58577421,2518.7,2518.6,11.94745977]
[1751718817345,0.58577421,2518.7,2518.6,7.977]
[1751718820755,0.58577421,2518.7,2518.6,11.94745977]
[1751718826362,0.58577421,2518.7,2518.6,3.97045977]
[1751718826659,0.58577421,2518.7,2518.6,11.94745977]
[1751718827261,0.58606191,2518.7,2518.6,11.94745977]
[1751718831353,0.58606191,2518.7,2518.5,0.002]
[1751718831554,6.09415197,2518.6,2518.5,0.002]
[1751718831758,7.29910548,2518.6,2518.5,7.978]
[1751718834788,11.26956525,2518.6,2518.5,0.002]
[1751718835088,11.26956525,2518.6,2518.5,7.978]
[1751718835585,7.29910548,2518.6,2518.5,7.978]
[1751718843207,11.26956525,2518.6,2518.5,7.978]
[1751718843883,7.29910548,2518.6,2518.5,0.002]
[1751718844102,7.29910548,2518.6,2518.5,7.979]
[1751718844782,1.78992508,2518.6,2518.5,7.979]
[1751718844984,0.56847157,2518.6,2518.5,7.979]
[1751718845371,0.56776053,2518.6,2518.5,7.979]
[1751718863118,0.1984,2518.6,2518.5,0.002]
[1751718863413,0.56827716,2518.6,2518.5,7.979]
[1751718865226,0.56828017,2518.6,2518.5,7.979]
[1751718865806,11.09499824,2518.6,2518.5,0.002]
[1751718866006,11.30989824,2518.6,2518.5,7.979]
[1751718866305,7.33943847,2518.6,2518.5,7.979]
[1751718872550,7.33943847,2518.6,2518.5,0.002]
[1751718872756,7.33943847,2518.6,2518.5,7.979]
[1751718873133,7.33943847,2518.6,2518.5,0.002]
[1751718873341,5.80071784,2518.6,2518.5,0.002]
[1751718873656,5.80071784,2518.6,2518.5,7.979]
[1751718874046,15.80071784,2518.6,2518.5,0.002]
[1751718874433,15.80071784,2518.6,2518.5,7.979]
[1751718875364,15.80070873,2518.6,2518.5,7.979]
[1751718877939,15.80070873,2518.6,2518.5,0.002]
[1751718878834,21.30988913,2518.6,2518.5,1e-08]
[1751718879039,21.30988913,2518.6,2517.9,0.002]
[1751718879040,3.97140587,2518.0,2517.9,0.002]
[1751718879258,10.46249792,2518.0,2517.9,0.002]
[1751718879877,10.6697089,2518.0,2517.9,0.002]
[1751718880033,10.6691217,2518.0,2517.9,0.002]
[1751718887575,10.66805399,2518.0,2517.9,0.002]
[1751718889250,4.94397359,2518.0,2517.9,0.002]
[1751718890083,10.45315399,2518.0,2517.9,0.002]
[1751718891787,10.66805399,2518.0,2517.9,0.002]
[1751718893093,10.46071692,2518.0,2517.9,0.002]
[1751718896794,20.46071692,2518.0,2517.9,0.002]
[1751718897591,20.66792598,2518.0,2517.9,0.002]
[1751718898068,21.21792598,2518.0,2517.9,0.002]
[1751718899089,21.21797878,2518.0,2517.9,0.002]
[1751718899807,23.29498937,2518.0,2517.9,0.002]
[1751718900102,23.2844649,2518.0,2517.9,0.002]
[1751718902014,13.9715636,2517.9,2517.8,1e-08]
[1751718902182,18.76509084,2517.9,2517.8,1e-08]
[1751718902372,14.73693686,2517.6,2517.5,0.002]
[1751718902564,22.69127071,2517.6,2517.5,0.002]
[1751718902768,23.72024874,2517.6,2517.5,1e-08]
[1751718903000,25.19151779,2517.6,2517.5,1e-08]
[1751718903592,34.62385102,2517.6,2517.5,1e-08]
[1751718903799,34.08053976,2517.6,2517.5,1e-08]
[1751718906680,24.16253976,2517.6,2517.5,1e-08]
[1751718907006,34.08053976,2517.6,2517.5,1e-08]
[1751718907178,34.62385102,2517.6,2517.5,1e-08]
[1751718908887,35.10951779,2517.6,2517.5,1e-08]
[1751718909087,3.97282587,2517.1,2517.0,0.042912]
[1751718909285,22.93661175,2517.1,2517.0,0.042912]
[1751718913010,22.93626383,2517.1,2517.0,0.044912]
[1751718914230,23.48626383,2517.1,2517.0,0.044912]
[1751718916117,23.48626383,2517.1,2517.0,1e-08]
[1751718916344,14.52361519,2516.6,2516.5,0.042912]
[1751718916507,24.41060112,2516.6,2516.5,0.042912]
[1751718918032,24.61792286,2516.6,2516.5,0.042912]
[1751718918603,24.25012792,2516.6,2516.5,0.042912]
[1751718918945,24.61736111,2516.6,2516.5,0.042912]
[1751718919109,27.53613423,2516.6,2516.5,0.042912]
[1751718920018,27.75103423,2516.6,2516.5,0.042912]
[1751718923738,25.81803423,2516.6,2516.5,0.042912]
[1751718923938,27.53713423,2516.6,2516.5,0.042912]
[1751718926025,3.49332805,2516.6,2516.5,0.042912]
[1751718926226,6.48217012,2516.6,2516.5,0.842812]
[1751718926426,16.48217012,2516.6,2516.5,0.842812]
[1751718927153,12.50855493,2516.6,2516.5,0.842812]
[1751718927515,16.48217012,2516.6,2516.5,0.842812]
[1751718928446,24.06836111,2516.6,2516.5,0.042912]
[1751718928651,26.87255176,2516.6,2516.5,0.042912]
[1751718930716,26.87255176,2516.6,2516.5,0.044912]
[1751718935040,28.18076302,2516.6,2516.3,0.01]
[1751718935246,13.97393101,2516.4,2516.3,0.01]
[1751718935434,15.92701572,2516.4,2516.3,0.01]
[1751718936444,15.92807947,2516.4,2516.3,0.01]
[1751718939460,15.92820977,2516.4,2516.3,0.01]
[1751718945952,15.55978253,2516.4,2516.3,0.01]
[1751718950758,16.10978253,2516.4,2516.3,0.01]
[1751718951080,16.47895922,2516.4,2516.3,0.01]
[1751718951484,24.06515021,2516.4,2516.3,0.01]
[1751718954294,17.86795922,2516.4,2516.3,0.01]
[1751718954986,17.86796062,2516.4,2516.3,0.01]
[1751718955561,18.41796062,2516.4,2516.3,0.01]
[1751718956494,19.44693865,2516.4,2516.3,0.01]
[1751718957601,19.66183865,2516.4,2516.3,0.01]
[1751718958769,13.97440483,2516.1,2516.0,0.052912]
[1751718958970,14.34358292,2516.1,2516.0,0.052912]
[1751718959318,15.13813495,2516.1,2516.0,0.052912]
[1751718959471,15.3454985,2516.1,2516.0,0.052912]
[1751718962198,14.55094647,2516.1,2516.0,0.865412]
[1751718965768,14.55166557,2516.1,2516.0,0.865412]
[1751718968404,14.55166557,2516.1,2516.0,0.052912]
[1751718969205,14.5516787,2516.1,2516.0,0.052912]
[1751718972171,14.5516787,2516.1,2516.0,0.803312]
[1751718973977,15.98537272,2516.1,2516.0,0.803312]
[1751718978117,15.98545685,2516.1,2516.0,0.803312]
[1751718978491,15.98545685,2516.1,2516.0,0.052912]
[1751718996107,15.98545685,2516.1,2516.0,0.875212]
[1751719000501,15.98561092,2516.1,2516.0,0.875212]
[1751719000903,12.01120609,2516.1,2516.0,0.875212]
[1751719001112,10.57751207,2516.1,2516.0,0.875212]
[1751719004121,10.57751207,2516.1,2516.0,0.052912]
[1751719004434,14.5519169,2516.1,2516.0,0.052912]
[1751719004744,14.5519169,2516.1,2516.0,0.002912]
[1751719004944,16.62012885,2516.1,2516.0,0.002912]
[1751719007910,16.62011397,2516.1,2516.0,0.002912]
[1751719010670,4.17296279,2516.0,2515.9,0.01]
[1751719011009,4.5429744,2516.0,2515.9,0.01]
[1751719012448,3.97487876,2515.8,2515.7,0.01]
[1751719012623,22.69598136,2515.8,2515.7,0.01]
[1751719012810,15.10979037,2515.8,2515.7,0.01]
[1751719013012,16.48921629,2515.8,2515.7,0.01]
[1751719016018,14.55221629,2515.8,2515.7,0.01]
[1751719016222,16.22833881,2515.8,2515.7,0.01]
[1751719016970,0.57665234,2515.8,2515.7,0.8144]
[1751719017262,0.77505234,2515.8,2515.7,0.8144]
[1751719017469,0.77505234,2515.8,2515.7,4.78943676]
[1751719018034,0.77505234,2515.8,2515.7,4.73943676]
[1751719018237,0.77505234,2515.8,2515.7,0.7644]
[1751719020702,0.77505234,2515.8,2515.6,0.002]
[1751719020870,0.36932642,2515.7,2515.6,0.002]
[1751719021049,0.36932642,2515.7,2515.6,0.8064]
[1751719025367,0.56772642,2515.7,2515.6,4.78159478]
[1751719025777,0.56772642,2515.7,2515.6,6.46269527]
[1751719025952,0.36932642,2515.7,2515.6,6.46269527]
[1751719028483,0.36932642,2515.7,2515.6,14.0886382]
[1751719028689,0.36932642,2515.7,2515.6,14.24728626]
[1751719030370,0.001,2516.1,2516.0,3.97456279]
[1751719030550,0.37019719,2516.1,2516.0,12.79096279]
[1751719030751,0.37019719,2516.1,2516.0,14.46752862]
[1751719033570,0.001,2516.1,2516.0,14.46752862]
[1751719033768,0.36996087,2516.1,2516.0,14.46752862]
[1751719033985,0.36996095,2516.1,2516.0,14.46752862]
[1751719039612,0.001,2516.1,2516.0,14.46752862]
[1751719039918,0.36959154,2516.1,2516.0,14.46752862]
[1751719040304,0.36959154,2516.1,2516.0,8.8134]
[1751719041619,0.36959154,2516.1,2516.0,12.78796279]
[1751719041822,0.36959154,2516.1,2516.0,8.8134]
[1751719041998,0.36959154,2516.1,2516.0,12.78796279]
[1751719043114,0.36959154,2516.1,2516.0,4.77896279]
[1751719043315,0.36959154,2516.1,2516.0,13.68316824]
[1751719044826,0.36959154,2516.1,2515.8,4.17326232]
[1751719045025,0.36859154,2516.0,2515.9,8.011]
[1751719046420,0.36859154,2516.0,2515.9,8.012]
[1751719046619,0.36859154,2516.0,2515.8,0.762]
[1751719046829,0.36859154,2516.0,2515.6,0.002]
[1751719046830,4.5417209,2515.9,2515.6,0.002]
[1751719047122,4.17343676,2515.7,2515.6,0.002]
[1751719047319,4.5420283,2515.7,2515.6,8.016]
[1751719049214,4.7969283,2515.7,2515.6,8.016]
[1751719049717,4.7969283,2515.7,2515.6,0.002]
[1751719049899,16.7409283,2515.7,2515.6,0.002]
[1751719050095,18.81251164,2515.7,2515.6,0.002]
[1751719052031,18.81251164,2515.7,2515.5,0.044912]
[1751719052032,4.23009478,2515.6,2515.5,0.044912]
[1751719052191,4.59868632,2515.6,2515.5,0.044912]
[1751719052930,4.59868632,2515.6,2515.3,0.01]
[1751719052931,14.23041085,2515.4,2515.3,0.01]
[1751719053244,26.07583968,2515.4,2515.2,0.01]
[1751719053386,15.34737076,2515.3,2515.2,1e-08]
[1751719055542,17.29637076,2515.3,2515.2,1e-08]
[1751719057550,14.79737076,2515.3,2515.2,1e-08]
[1751719057762,17.15768763,2515.3,2515.2,1e-08]
[1751719058659,15.20868763,2515.3,2515.2,1e-08]
[1751719058947,6.74737076,2515.3,2515.2,1e-08]
[1751719061039,6.49247076,2515.3,2515.2,1e-08]
[1751719061238,4.54247076,2515.3,2515.2,1e-08]
[1751719061435,6.49247076,2515.3,2515.2,1e-08]
[1751719061609,16.49247076,2515.3,2515.2,1e-08]
[1751719062208,12.51680186,2515.3,2515.2,1e-08]
[1751719063519,0.56680186,2515.3,2515.2,1e-08]
[1751719063822,5.92499794,2515.8,2515.3,3.97562108]
[1751719064025,10.36698346,2515.7,2515.3,3.97562108]
[1751719064243,0.36698346,2515.6,2515.3,3.97562108]
[1751719064421,0.36698346,2515.5,2515.3,3.97562108]
[1751719064626,0.36698346,2515.4,2515.3,3.97562108]
[1751719065335,10.0,2515.7,2515.3,3.97562108]
[1751719065336,0.36698346,2515.6,2515.3,3.97562108]
[1751719065541,0.36698346,2515.5,2515.3,3.97562108]
[1751719065728,0.36698346,2515.4,2515.2,4.78754659]
[1751719065925,0.36698346,2515.3,2515.2,1e-08]
[1751719066248,0.36698346,2515.4,2515.2,1e-08]
[1751719067337,0.36698346,2515.3,2515.2,1e-08]
[1751719068144,0.36727868,2515.4,2515.2,1e-08]
[1751719068351,0.36727868,2515.3,2515.2,1e-08]
[1751719068518,0.36727868,2515.4,2515.2,1e-08]
[1751719068848,0.36727868,2515.3,2515.2,1e-08]
[1751719069516,0.36748389,2515.4,2515.2,1e-08]
[1751719069718,0.36748389,2515.3,2515.2,1e-08]
[1751719073449,0.36748389,2515.3,2515.2,0.79900001]
[1751719077257,0.36748389,2515.3,2515.2,4.77482698]
[1751719077452,0.36748389,2515.3,2515.2,5.25681542]
[1751719082666,0.36748389,2515.3,2515.2,5.45521542]
[1751719084870,0.36748389,2515.3,2515.2,13.48121542]
[1751719086272,0.001,2515.4,2515.3,3.9756689]
[1751719086471,0.36996068,2515.4,2515.3,5.72155733]
[1751719087053,0.36996068,2515.4,2515.3,6.52155733]
[1751719087583,0.37007486,2515.4,2515.3,6.52155733]
[1751719088773,0.37007486,2515.4,2515.2,0.68038845]
[1751719088975,0.36907486,2515.3,2515.2,1e-08]
[1751719089270,0.36907486,2515.3,2515.2,8.02400001]
[1751719089464,0.3692076,2515.3,2515.2,7.97400001]
[1751719090187,0.3692076,2515.3,2515.2,11.94982698]
[1751719090684,0.3692076,2515.3,2515.2,12.94822698]
[1751719090882,0.3692076,2515.3,2515.2,15.11913724]
[1751719093490,0.3692076,2515.3,2515.2,7.14513723]
[1751719093692,0.3692076,2515.3,2515.2,8.024]
[1751719095394,0.36945417,2515.3,2515.2,8.024]
[1751719096497,0.36945417,2515.3,2515.1,3.97789875]
[1751719096690,0.1994,2515.4,2515.2,8.025]
[1751719096994,0.36945572,2515.3,2515.2,8.025]
[1751719097687,0.36945572,2515.3,2515.2,12.00082697]
[1751719098793,0.36945572,2515.3,2515.2,8.025]
[1751719098995,0.37045572,2515.3,2515.2,8.025]
[1751719099198,0.37048745,2515.3,2515.2,8.025]
[1751719099804,0.37048745,2515.3,2515.2,12.00082697]
[1751719102899,0.37048745,2515.3,2515.2,8.025]
[1751719103273,0.37048745,2515.3,2515.2,8.022]
[1751719104476,0.37048745,2515.3,2515.2,11.99782697]
[1751719106307,0.001,2515.7,2515.6,12.35138577]
[1751719106610,0.001,2516.1,2516.0,4.76456279]
[1751719106775,0.001,2516.1,2516.0,21.31242542]
[1751719106972,0.001,2516.1,2516.0,21.4710798]
[1751719107172,0.001,2516.3,2516.2,3.97424688]
[1751719107429,0.001,2516.3,2516.2,12.85498934]
[1751719107728,1e-08,2516.3,2516.2,13.01364688]
[1751719107877,1e-08,2516.3,2516.2,15.95591805]
[1751719108899,1e-08,2516.3,2516.2,25.95591805]
[1751719109709,1e-08,2516.3,2516.2,26.50591805]
[1751719109880,1e-08,2516.5,2516.4,15.31393101]
[1751719110084,1e-08,2516.5,2516.4,34.99841448]
[1751719120905,1e-08,2516.5,2516.4,26.94741448]
[1751719121107,1e-08,2516.5,2516.4,36.94741448]
[1751719121638,1e-08,2516.5,2516.4,41.68741448]
[1751719125202,1e-08,2516.5,2516.4,24.10122349]
[1751719125539,1e-08,2516.5,2516.4,34.09822349]
[1751719128371,1e-08,2516.5,2516.4,12.76122349]
[1751719128514,1e-08,2516.5,2516.4,16.74993101]
[1751719129807,1e-08,2516.5,2516.4,28.10723101]
[1751719133426,1e-08,2516.5,2516.4,28.10923101]
[1751719134031,1e-08,2516.5,2516.4,20.07323101]
[1751719134232,1e-08,2516.5,2516.4,30.08023101]
[1751719134440,1e-08,2516.5,2516.4,33.92912349]
[1751719136333,1e-08,2516.5,2516.4,23.92212349]